[Event "Titled Tuesday Blitz August 1 Late 2023"]
[White "Ozates, Tuna"]
[Black "Elissalt Cardenas, Hector"]
[WhiteFideId "6354521"]
[BlackFideId "3500632"]
[WhiteElo "2611"]
[BlackElo "2356"]
[Result "0-1"]
[Round "1"]
[TimeControl "180+1"]
[Date "2023.08.01"]
[WhiteClock "0:00:00"]
[BlackClock "0:00:07"]
[Board "108"]

1. Nf3 {[%clk 0:02:51]}  d5 {[%clk 0:02:55]} 2. c4 {[%clk 0:02:48]}  e6 {[%clk 0:02:50]} 3. d4 {[%clk 0:02:48]}  Nf6 {[%clk 0:02:47]} 4. Nc3 {[%clk 0:02:47]}  Be7 {[%clk 0:02:46]} 5. Bg5 {[%clk 0:02:46]}  O-O {[%clk 0:02:41]} 6. e3 {[%clk 0:02:45]}  h6 {[%clk 0:02:34]} 7. Bh4 {[%clk 0:02:45]}  b6 {[%clk 0:02:30]} 8. Qc2 {[%clk 0:02:39]}  Bb7 {[%clk 0:02:27]} 9. Be2 {[%clk 0:02:31]}  Nbd7 {[%clk 0:02:19]} 10. O-O {[%clk 0:02:30]}  c5 {[%clk 0:02:10]} 11. Rfd1 {[%clk 0:02:27]}  Rc8 {[%clk 0:02:04]} 12. cxd5 {[%clk 0:02:23]}  Nxd5 {[%clk 0:01:58]} 13. Bxe7 {[%clk 0:02:19]}  Qxe7 {[%clk 0:01:55]} 14. Qa4 {[%clk 0:02:17]}  Nxc3 {[%clk 0:01:41]} 15. bxc3 {[%clk 0:02:11]}  a6 {[%clk 0:01:41]} 16. Rac1 {[%clk 0:02:02]}  b5 {[%clk 0:01:39]} 17. Qa3 {[%clk 0:02:01]}  Rfe8 {[%clk 0:01:32]} 18. c4 {[%clk 0:01:51]}  cxd4 {[%clk 0:01:21]} 19. Qxe7 {[%clk 0:01:51]}  Rxe7 {[%clk 0:01:21]} 20. Nxd4 {[%clk 0:01:43]}  b4 {[%clk 0:01:13]} 21. Nb3 {[%clk 0:01:38]}  Nc5 {[%clk 0:01:11]} 22. Na5 {[%clk 0:01:28]}  Ba8 {[%clk 0:01:00]} 23. Rd6 {[%clk 0:01:15]}  f5 {[%clk 0:00:52]} 24. Rcd1 {[%clk 0:01:15]}  Kf7 {[%clk 0:00:52]} 25. h4 {[%clk 0:01:14]}  g6 {[%clk 0:00:51]} 26. h5 {[%clk 0:01:13]}  g5 {[%clk 0:00:51]} 27. g4 {[%clk 0:01:10]}  Ne4 {[%clk 0:00:47]} 28. Rd8 {[%clk 0:01:06]}  Rec7 {[%clk 0:00:45]} 29. Rxc8 {[%clk 0:01:05]}  Rxc8 {[%clk 0:00:45]} 30. Rd7+ {[%clk 0:01:04]}  Kf6 {[%clk 0:00:43]} 31. Rh7 {[%clk 0:01:04]}  Nc3 {[%clk 0:00:43]} 32. Rxh6+ {[%clk 0:00:59]}  Ke5 {[%clk 0:00:43]} 33. Kf1 {[%clk 0:00:53]}  Nxe2 {[%clk 0:00:41]} 34. Kxe2 {[%clk 0:00:53]}  fxg4 {[%clk 0:00:40]} 35. Rg6 {[%clk 0:00:26]}  Bf3+ {[%clk 0:00:40]} 36. Kd2 {[%clk 0:00:26]}  Kf5 {[%clk 0:00:31]} 37. Nb3 {[%clk 0:00:23]}  e5 {[%clk 0:00:19]} 38. c5 {[%clk 0:00:19]}  g3 {[%clk 0:00:19]} 39. fxg3 {[%clk 0:00:19]}  Bxh5 {[%clk 0:00:18]} 40. Rxa6 {[%clk 0:00:20]}  Rd8+ {[%clk 0:00:16]} 41. Rd6 {[%clk 0:00:17]}  Rxd6+ {[%clk 0:00:15]} 42. cxd6 {[%clk 0:00:18]}  Ke6 {[%clk 0:00:16]} 43. Nc5+ {[%clk 0:00:19]}  Kxd6 {[%clk 0:00:16]} 44. Ne4+ {[%clk 0:00:19]}  Kd5 {[%clk 0:00:15]} 45. Nxg5 {[%clk 0:00:20]}  Kc4 {[%clk 0:00:15]} 46. Ne4 {[%clk 0:00:15]}  Bf3 {[%clk 0:00:14]} 47. Nd6+ {[%clk 0:00:13]}  Kd5 {[%clk 0:00:13]} 48. Nf5 {[%clk 0:00:10]}  Kc4 {[%clk 0:00:13]} 49. Nh6 {[%clk 0:00:04]}  Kb5 {[%clk 0:00:12]} 50. g4 {[%clk 0:00:04]}  Bd5 {[%clk 0:00:11]} 51. g5 {[%clk 0:00:03]}  Bxa2 {[%clk 0:00:11]} 52. g6 {[%clk 0:00:03]}  Ka4 {[%clk 0:00:09]} 53. g7 {[%clk 0:00:03]}  Ka3 {[%clk 0:00:08]} 54. g8=Q {[%clk 0:00:02]}  Bxg8 {[%clk 0:00:07]} 55. Nxg8 {[%clk 0:00:03]}  b3 {[%clk 0:00:07]} 56. Ne7 {[%clk 0:00:00]}  b2 {[%clk 0:00:07]} 0-1


[Site "https://www.chess.com"]

[Event "Titled Tuesday Blitz August 1 Late 2023"]
[White "Slavin, Alexey"]
[Black "Khater, Sherif"]
[WhiteFideId "24104388"]
[BlackFideId "2034280"]
[WhiteElo "2352"]
[BlackElo "2602"]
[Result "1/2-1/2"]
[Round "1"]
[TimeControl "180+1"]
[Date "2023.08.01"]
[WhiteClock "0:00:20"]
[BlackClock "0:01:23"]
[Board "111"]

1. e4 {[%clk 0:03:00]}  e5 {[%clk 0:03:00]} 2. Nf3 {[%clk 0:03:00]}  Nf6 {[%clk 0:03:00]} 3. d4 {[%clk 0:02:58]}  Nxe4 {[%clk 0:03:00]} 4. Bd3 {[%clk 0:02:59]}  d5 {[%clk 0:03:00]} 5. Nxe5 {[%clk 0:02:59]}  Nd7 {[%clk 0:03:01]} 6. O-O {[%clk 0:02:56]}  Be7 {[%clk 0:02:56]} 7. Nd2 {[%clk 0:02:54]}  Nxd2 {[%clk 0:02:56]} 8. Bxd2 {[%clk 0:02:54]}  O-O {[%clk 0:02:54]} 9. Nxd7 {[%clk 0:02:43]}  Qxd7 {[%clk 0:02:54]} 10. Qh5 {[%clk 0:02:43]}  g6 {[%clk 0:02:50]} 11. Qh6 {[%clk 0:02:33]}  Bf6 {[%clk 0:02:50]} 12. c3 {[%clk 0:02:28]}  Bg7 {[%clk 0:02:50]} 13. Qh4 {[%clk 0:02:28]}  c6 {[%clk 0:02:48]} 14. h3 {[%clk 0:02:26]}  Qd8 {[%clk 0:02:47]} 15. Bg5 {[%clk 0:02:22]}  f6 {[%clk 0:02:47]} 16. Bh6 {[%clk 0:02:22]}  Be6 {[%clk 0:02:40]} 17. Rfe1 {[%clk 0:02:19]}  Bf7 {[%clk 0:02:41]} 18. Re3 {[%clk 0:02:16]}  g5 {[%clk 0:02:31]} 19. Bxg5 {[%clk 0:02:09]}  Bg6 {[%clk 0:02:20]} 20. Bxg6 {[%clk 0:02:03]}  hxg6 {[%clk 0:02:21]} 21. Bh6 {[%clk 0:01:59]}  Qd7 {[%clk 0:02:19]} 22. Rae1 {[%clk 0:01:55]}  Rae8 {[%clk 0:02:18]} 23. Bxg7 {[%clk 0:01:48]}  Kxg7 {[%clk 0:02:14]} 24. Qf4 {[%clk 0:01:45]}  Rxe3 {[%clk 0:02:13]} 25. Qxe3 {[%clk 0:01:40]}  Rf7 {[%clk 0:02:07]} 26. Qe8 {[%clk 0:01:30]}  Qxe8 {[%clk 0:02:08]} 27. Rxe8 {[%clk 0:01:30]}  a6 {[%clk 0:02:08]} 28. Kf1 {[%clk 0:01:28]}  Rd7 {[%clk 0:02:08]} 29. Ke2 {[%clk 0:01:28]}  Kf7 {[%clk 0:02:09]} 30. Rb8 {[%clk 0:01:26]}  Re7+ {[%clk 0:02:09]} 31. Kd2 {[%clk 0:01:25]}  g5 {[%clk 0:02:08]} 32. a4 {[%clk 0:01:24]}  Ke6 {[%clk 0:02:07]} 33. a5 {[%clk 0:01:20]}  Kd6 {[%clk 0:02:06]} 34. Rf8 {[%clk 0:01:19]}  Ke6 {[%clk 0:02:06]} 35. g3 {[%clk 0:01:16]}  Rh7 {[%clk 0:02:04]} 36. Rb8 {[%clk 0:01:16]}  Kd6 {[%clk 0:02:04]} 37. Ke3 {[%clk 0:01:13]}  Ke6 {[%clk 0:02:01]} 38. Kf3 {[%clk 0:01:11]}  Kf5 {[%clk 0:01:53]} 39. b4 {[%clk 0:01:02]}  Kg6 {[%clk 0:01:45]} 40. Kg4 {[%clk 0:00:59]}  f5+ {[%clk 0:01:46]} 41. Kf3 {[%clk 0:00:59]}  Kf6 {[%clk 0:01:46]} 42. Rf8+ {[%clk 0:00:49]}  Ke6 {[%clk 0:01:46]} 43. Kg2 {[%clk 0:00:42]}  Rg7 {[%clk 0:01:40]} 44. Rh8 {[%clk 0:00:39]}  Kf6 {[%clk 0:01:34]} 45. h4 {[%clk 0:00:39]}  gxh4 {[%clk 0:01:34]} 46. Rxh4 {[%clk 0:00:39]}  Re7 {[%clk 0:01:34]} 47. Kf3 {[%clk 0:00:38]}  Kg6 {[%clk 0:01:33]} 48. Rh8 {[%clk 0:00:33]}  Kg7 {[%clk 0:01:33]} 49. Rb8 {[%clk 0:00:33]}  Kg6 {[%clk 0:01:32]} 50. Rg8+ {[%clk 0:00:27]}  Kf7 {[%clk 0:01:26]} 51. Rh8 {[%clk 0:00:22]}  Kg7 {[%clk 0:01:24]} 52. Rb8 {[%clk 0:00:22]}  Kf6 {[%clk 0:01:24]} 53. Kf4 {[%clk 0:00:19]}  Re4+ {[%clk 0:01:24]} 54. Kf3 {[%clk 0:00:20]}  Re7 {[%clk 0:01:25]} 55. Kg2 {[%clk 0:00:20]}  Kg6 {[%clk 0:01:24]} 56. Kf1 {[%clk 0:00:20]}  Kf6 {[%clk 0:01:23]} 57. Kg2 {[%clk 0:00:19]}  Kg6 {[%clk 0:01:22]} 58. Kf3 {[%clk 0:00:20]}  Kf6 {[%clk 0:01:23]} 1/2-1/2


[Site "https://www.chess.com"]

[Event "Titled Tuesday Blitz August 1 Late 2023"]
[White "Sivakumar, Shaashwath"]
[Black "Senft, Sean"]
[WhiteFideId "30912156"]
[BlackFideId "2044960"]
[WhiteElo "2601"]
[BlackElo "2352"]
[Result "1-0"]
[Round "1"]
[TimeControl "180+1"]
[Date "2023.08.01"]
[WhiteClock "0:00:04"]
[BlackClock "0:00:07"]
[Board "112"]

1. d4 {[%clk 0:02:59]}  d5 {[%clk 0:03:00]} 2. Bf4 {[%clk 0:02:57]}  Nf6 {[%clk 0:03:00]} 3. e3 {[%clk 0:02:57]}  e6 {[%clk 0:03:00]} 4. Nd2 {[%clk 0:02:58]}  Bd6 {[%clk 0:03:01]} 5. Bg3 {[%clk 0:02:58]}  b6 {[%clk 0:03:02]} 6. c3 {[%clk 0:02:55]}  Bb7 {[%clk 0:03:02]} 7. Ngf3 {[%clk 0:02:55]}  O-O {[%clk 0:03:03]} 8. Bd3 {[%clk 0:02:55]}  c5 {[%clk 0:03:02]} 9. Qe2 {[%clk 0:02:54]}  Ne4 {[%clk 0:02:55]} 10. Bxd6 {[%clk 0:02:43]}  Qxd6 {[%clk 0:02:54]} 11. O-O {[%clk 0:02:37]}  Nd7 {[%clk 0:02:53]} 12. Rad1 {[%clk 0:02:30]}  Nxd2 {[%clk 0:02:50]} 13. Rxd2 {[%clk 0:02:28]}  cxd4 {[%clk 0:02:40]} 14. exd4 {[%clk 0:02:27]}  Nf6 {[%clk 0:02:38]} 15. Rdd1 {[%clk 0:02:18]}  Ne4 {[%clk 0:02:38]} 16. Ne5 {[%clk 0:02:10]}  f6 {[%clk 0:02:36]} 17. Ng4 {[%clk 0:02:10]}  f5 {[%clk 0:02:33]} 18. Ne5 {[%clk 0:02:08]}  Rf6 {[%clk 0:02:28]} 19. Rfe1 {[%clk 0:01:44]}  Rh6 {[%clk 0:02:22]} 20. Qe3 {[%clk 0:01:32]}  a5 {[%clk 0:02:20]} 21. Qf4 {[%clk 0:01:20]}  Ba6 {[%clk 0:02:14]} 22. Bxa6 {[%clk 0:01:15]}  Rxa6 {[%clk 0:02:15]} 23. a4 {[%clk 0:01:13]}  Ra8 {[%clk 0:02:11]} 24. Re3 {[%clk 0:01:01]}  g5 {[%clk 0:02:06]} 25. Qf3 {[%clk 0:00:57]}  Qe7 {[%clk 0:01:29]} 26. Qe2 {[%clk 0:00:43]}  Qe8 {[%clk 0:01:28]} 27. f3 {[%clk 0:00:37]}  f4 {[%clk 0:01:06]} 28. Red3 {[%clk 0:00:35]}  Nd6 {[%clk 0:01:05]} 29. Re1 {[%clk 0:00:29]}  Nf5 {[%clk 0:01:04]} 30. Ng4 {[%clk 0:00:22]}  Rg6 {[%clk 0:01:05]} 31. Qe5 {[%clk 0:00:22]}  Kf7 {[%clk 0:01:00]} 32. Qc7+ {[%clk 0:00:15]}  Qe7 {[%clk 0:00:57]} 33. Ne5+ {[%clk 0:00:15]}  Kf6 {[%clk 0:00:52]} 34. Qxe7+ {[%clk 0:00:12]}  Kxe7 {[%clk 0:00:51]} 35. Nxg6+ {[%clk 0:00:11]}  hxg6 {[%clk 0:00:52]} 36. Rd2 {[%clk 0:00:11]}  Rc8 {[%clk 0:00:49]} 37. Rde2 {[%clk 0:00:11]}  Ne3 {[%clk 0:00:49]} 38. g3 {[%clk 0:00:11]}  Kd6 {[%clk 0:00:41]} 39. h4 {[%clk 0:00:11]}  gxh4 {[%clk 0:00:16]} 40. gxf4 {[%clk 0:00:11]}  Nc4 {[%clk 0:00:17]} 41. Rxe6+ {[%clk 0:00:11]}  Kd7 {[%clk 0:00:17]} 42. Rxg6 {[%clk 0:00:10]}  Nxb2 {[%clk 0:00:16]} 43. f5 {[%clk 0:00:06]}  Nxa4 {[%clk 0:00:16]} 44. f6 {[%clk 0:00:06]}  Rf8 {[%clk 0:00:16]} 45. Re7+ {[%clk 0:00:05]}  Kd8 {[%clk 0:00:17]} 46. Ra7 {[%clk 0:00:05]}  Ke8 {[%clk 0:00:12]} 47. Rgg7 {[%clk 0:00:03]}  Rf7 {[%clk 0:00:07]} 48. Raxf7 {[%clk 0:00:04]}  Nxc3 {[%clk 0:00:06]} 49. Ra7 {[%clk 0:00:04]}  Ne2+ {[%clk 0:00:06]} 50. Kf2 {[%clk 0:00:04]}  Nxd4 {[%clk 0:00:07]} 51. Ra8# {[%clk 0:00:04]} 1-0


[Site "https://www.chess.com"]

[Event "Titled Tuesday Blitz August 1 Late 2023"]
[White "Pinheiro, Iung Alicio de O."]
[Black "Prydun, Andriy"]
[WhiteFideId "2104350"]
[BlackFideId "14145898"]
[WhiteElo "2600"]
[BlackElo "2349"]
[Result "1-0"]
[Round "1"]
[TimeControl "180+1"]
[Date "2023.08.01"]
[WhiteClock "0:00:11"]
[BlackClock "0:00:00"]
[Board "114"]

1. e4 {[%clk 0:02:56]}  c6 {[%clk 0:02:58]} 2. Nc3 {[%clk 0:02:55]}  d5 {[%clk 0:02:59]} 3. Nf3 {[%clk 0:02:55]}  Bg4 {[%clk 0:02:58]} 4. h3 {[%clk 0:02:55]}  Bxf3 {[%clk 0:02:59]} 5. Qxf3 {[%clk 0:02:56]}  e6 {[%clk 0:02:59]} 6. a3 {[%clk 0:02:55]}  Nd7 {[%clk 0:02:59]} 7. d3 {[%clk 0:02:54]}  Ngf6 {[%clk 0:02:58]} 8. g4 {[%clk 0:02:54]}  Qc7 {[%clk 0:02:54]} 9. g5 {[%clk 0:02:48]}  Ng8 {[%clk 0:02:54]} 10. Bf4 {[%clk 0:02:43]}  Bd6 {[%clk 0:02:53]} 11. Bxd6 {[%clk 0:02:17]}  Qxd6 {[%clk 0:02:54]} 12. O-O-O {[%clk 0:02:10]}  Ne7 {[%clk 0:02:54]} 13. d4 {[%clk 0:02:10]}  Qc7 {[%clk 0:02:39]} 14. Kb1 {[%clk 0:02:05]}  a6 {[%clk 0:02:13]} 15. h4 {[%clk 0:02:04]}  b5 {[%clk 0:02:12]} 16. h5 {[%clk 0:01:54]}  Rf8 {[%clk 0:02:08]} 17. Bh3 {[%clk 0:01:37]}  Rb8 {[%clk 0:01:52]} 18. exd5 {[%clk 0:01:19]}  cxd5 {[%clk 0:01:51]} 19. Na2 {[%clk 0:01:15]}  a5 {[%clk 0:01:50]} 20. Rhe1 {[%clk 0:01:13]}  Nb6 {[%clk 0:01:43]} 21. Qd3 {[%clk 0:00:39]}  g6 {[%clk 0:01:37]} 22. Re2 {[%clk 0:00:30]}  Nc4 {[%clk 0:01:35]} 23. Rde1 {[%clk 0:00:30]}  Rb6 {[%clk 0:01:34]} 24. Nc1 {[%clk 0:00:28]}  b4 {[%clk 0:01:31]} 25. a4 {[%clk 0:00:27]}  Qf4 {[%clk 0:01:09]} 26. Rg1 {[%clk 0:00:18]}  gxh5 {[%clk 0:00:44]} 27. Nb3 {[%clk 0:00:17]}  Ng6 {[%clk 0:00:41]} 28. Nc5 {[%clk 0:00:17]}  Ke7 {[%clk 0:00:27]} 29. Rge1 {[%clk 0:00:16]}  Re8 {[%clk 0:00:23]} 30. Bxe6 {[%clk 0:00:16]}  fxe6 {[%clk 0:00:20]} 31. Nxe6 {[%clk 0:00:17]}  Qd6 {[%clk 0:00:01]} 32. Ng7+ {[%clk 0:00:11]}  Kf7 {[%clk 0:00:00]} 33. Nxe8 {[%clk 0:00:11]} 1-0


[Site "https://www.chess.com"]

[Event "Titled Tuesday Blitz August 1 Late 2023"]
[White "Spichkin, Alexander"]
[Black "Wu, Rochelle"]
[WhiteFideId "4144074"]
[BlackFideId "30908132"]
[WhiteElo "2345"]
[BlackElo "2600"]
[Result "0-1"]
[Round "1"]
[TimeControl "180+1"]
[Date "2023.08.01"]
[WhiteClock "0:01:01"]
[BlackClock "0:01:14"]
[Board "115"]

1. f4 {[%clk 0:03:00]}  d5 {[%clk 0:02:59]} 2. Nf3 {[%clk 0:03:00]}  Nc6 {[%clk 0:03:00]} 3. e3 {[%clk 0:03:00]}  Nf6 {[%clk 0:03:00]} 4. Bb5 {[%clk 0:03:01]}  Bd7 {[%clk 0:02:59]} 5. O-O {[%clk 0:03:00]}  e6 {[%clk 0:02:58]} 6. b3 {[%clk 0:03:00]}  Bd6 {[%clk 0:02:58]} 7. Bb2 {[%clk 0:03:00]}  O-O {[%clk 0:02:58]} 8. Bxc6 {[%clk 0:03:01]}  Bxc6 {[%clk 0:02:55]} 9. Ne5 {[%clk 0:03:01]}  Bxe5 {[%clk 0:02:55]} 10. Bxe5 {[%clk 0:03:00]}  Nd7 {[%clk 0:02:55]} 11. Bb2 {[%clk 0:03:01]}  f6 {[%clk 0:02:54]} 12. d3 {[%clk 0:03:01]}  Qe7 {[%clk 0:02:54]} 13. Nd2 {[%clk 0:03:01]}  e5 {[%clk 0:02:54]} 14. f5 {[%clk 0:03:01]}  e4 {[%clk 0:02:49]} 15. d4 {[%clk 0:02:57]}  b5 {[%clk 0:02:42]} 16. c4 {[%clk 0:02:56]}  bxc4 {[%clk 0:02:41]} 17. bxc4 {[%clk 0:02:56]}  dxc4 {[%clk 0:02:41]} 18. a4 {[%clk 0:02:57]}  Bd5 {[%clk 0:02:40]} 19. Ba3 {[%clk 0:02:56]}  c5 {[%clk 0:02:39]} 20. Rc1 {[%clk 0:02:49]}  Rfd8 {[%clk 0:02:26]} 21. Nxc4 {[%clk 0:02:47]}  Bxc4 {[%clk 0:02:12]} 22. Rxc4 {[%clk 0:02:46]}  Qf7 {[%clk 0:02:12]} 23. d5 {[%clk 0:02:39]}  Ne5 {[%clk 0:02:11]} 24. Rxc5 {[%clk 0:02:39]}  Nd3 {[%clk 0:02:11]} 25. Rb5 {[%clk 0:02:23]}  a6 {[%clk 0:02:00]} 26. Rb1 {[%clk 0:02:20]}  Rxd5 {[%clk 0:01:59]} 27. Qb3 {[%clk 0:02:20]}  Rad8 {[%clk 0:01:57]} 28. Rfd1 {[%clk 0:02:17]}  Rxf5 {[%clk 0:01:53]} 29. Qxf7+ {[%clk 0:02:12]}  Kxf7 {[%clk 0:01:54]} 30. Rb7+ {[%clk 0:02:12]}  Kg8 {[%clk 0:01:53]} 31. Be7 {[%clk 0:02:04]}  Rc8 {[%clk 0:01:50]} 32. Ba3 {[%clk 0:01:56]}  Rc2 {[%clk 0:01:46]} 33. Rf1 {[%clk 0:01:48]}  Rxf1+ {[%clk 0:01:39]} 34. Kxf1 {[%clk 0:01:48]}  Rf2+ {[%clk 0:01:39]} 35. Kg1 {[%clk 0:01:45]}  Ra2 {[%clk 0:01:39]} 36. Bc1 {[%clk 0:01:35]}  Nxc1 {[%clk 0:01:36]} 37. h3 {[%clk 0:01:18]}  Rxa4 {[%clk 0:01:32]} 38. Rc7 {[%clk 0:01:15]}  Nd3 {[%clk 0:01:31]} 39. Re7 {[%clk 0:01:15]}  h5 {[%clk 0:01:28]} 40. Kh2 {[%clk 0:01:11]}  h4 {[%clk 0:01:26]} 41. g4 {[%clk 0:01:06]}  Ra2+ {[%clk 0:01:22]} 42. Kg1 {[%clk 0:01:06]}  Nf2 {[%clk 0:01:22]} 43. g5 {[%clk 0:01:04]}  fxg5 {[%clk 0:01:21]} 44. Kg2 {[%clk 0:01:04]}  Ng4+ {[%clk 0:01:18]} 45. Kg1 {[%clk 0:01:03]}  Nf6 {[%clk 0:01:15]} 46. Re5 {[%clk 0:01:00]}  g4 {[%clk 0:01:15]} 47. hxg4 {[%clk 0:00:59]}  h3 {[%clk 0:01:15]} 48. g5 {[%clk 0:00:59]}  h2+ {[%clk 0:01:15]} 49. Kh1 {[%clk 0:01:00]}  Ng4 {[%clk 0:01:15]} 50. Rf5 {[%clk 0:00:59]}  Ra1+ {[%clk 0:01:14]} 51. Kg2 {[%clk 0:01:00]}  h1=Q+ {[%clk 0:01:14]} 52. Kg3 {[%clk 0:01:00]}  Rg1+ {[%clk 0:01:13]} 53. Kf4 {[%clk 0:01:01]}  Qf3# {[%clk 0:01:14]} 0-1


[Site "https://www.chess.com"]

[Event "Titled Tuesday Blitz August 1 Late 2023"]
[White "vishwa_vijeta"]
[Black "Kostiukov, Alexandr"]
[BlackFideId "14108100"]
[WhiteElo "2591"]
[BlackElo "2343"]
[Result "1-0"]
[Round "1"]
[TimeControl "180+1"]
[Date "2023.08.01"]
[WhiteClock "0:00:29"]
[BlackClock "0:00:00"]
[Board "116"]

1. e4 {[%clk 0:03:00]}  c5 {[%clk 0:02:54]} 2. Nf3 {[%clk 0:02:59]}  g6 {[%clk 0:02:54]} 3. d4 {[%clk 0:02:57]}  cxd4 {[%clk 0:02:54]} 4. Nxd4 {[%clk 0:02:58]}  Bg7 {[%clk 0:02:53]} 5. c4 {[%clk 0:02:56]}  Nc6 {[%clk 0:02:53]} 6. Be3 {[%clk 0:02:56]}  Nf6 {[%clk 0:02:53]} 7. Nc3 {[%clk 0:02:56]}  O-O {[%clk 0:02:50]} 8. Be2 {[%clk 0:02:55]}  Nxd4 {[%clk 0:02:49]} 9. Bxd4 {[%clk 0:02:54]}  Qa5 {[%clk 0:02:50]} 10. O-O {[%clk 0:02:53]}  d6 {[%clk 0:02:48]} 11. f3 {[%clk 0:02:53]}  Be6 {[%clk 0:02:48]} 12. b3 {[%clk 0:02:52]}  Rfc8 {[%clk 0:02:47]} 13. Rb1 {[%clk 0:02:48]}  Nd7 {[%clk 0:02:33]} 14. Bxg7 {[%clk 0:02:45]}  Kxg7 {[%clk 0:02:34]} 15. Qd4+ {[%clk 0:02:44]}  f6 {[%clk 0:02:27]} 16. f4 {[%clk 0:02:24]}  Qc5 {[%clk 0:02:14]} 17. Qxc5 {[%clk 0:02:07]}  Nxc5 {[%clk 0:02:09]} 18. Rbe1 {[%clk 0:02:00]}  a5 {[%clk 0:01:54]} 19. f5 {[%clk 0:01:54]}  Bf7 {[%clk 0:01:47]} 20. Rc1 {[%clk 0:01:34]}  a4 {[%clk 0:01:37]} 21. b4 {[%clk 0:01:33]}  Nd7 {[%clk 0:01:36]} 22. fxg6 {[%clk 0:01:22]}  hxg6 {[%clk 0:01:22]} 23. Nd5 {[%clk 0:01:17]}  Bxd5 {[%clk 0:01:15]} 24. cxd5 {[%clk 0:01:16]}  Ne5 {[%clk 0:01:14]} 25. a3 {[%clk 0:01:10]}  Kf7 {[%clk 0:00:46]} 26. Bb5 {[%clk 0:01:02]}  e6 {[%clk 0:00:27]} 27. dxe6+ {[%clk 0:00:49]}  Kxe6 {[%clk 0:00:23]} 28. Rxc8 {[%clk 0:00:48]}  Rxc8 {[%clk 0:00:22]} 29. Bxa4 {[%clk 0:00:48]}  Rc3 {[%clk 0:00:20]} 30. Ra1 {[%clk 0:00:48]}  Nc4 {[%clk 0:00:14]} 31. Be8 {[%clk 0:00:44]}  g5 {[%clk 0:00:02]} 32. a4 {[%clk 0:00:43]}  Rc2 {[%clk 0:00:00]} 33. a5 {[%clk 0:00:29]} 1-0


[Site "https://www.chess.com"]

[Event "Titled Tuesday Blitz August 1 Late 2023"]
[White "Kujawski, Adam"]
[Black "Perez, Maximiliano"]
[WhiteFideId "1100920"]
[BlackFideId "117234"]
[WhiteElo "2341"]
[BlackElo "2589"]
[Result "1-0"]
[Round "1"]
[TimeControl "180+1"]
[Date "2023.08.01"]
[WhiteClock "0:00:07"]
[BlackClock "0:00:04"]
[Board "117"]

1. e4 {[%clk 0:02:59]}  c5 {[%clk 0:02:59]} 2. Nf3 {[%clk 0:02:59]}  Nc6 {[%clk 0:02:59]} 3. Nc3 {[%clk 0:02:59]}  e5 {[%clk 0:02:59]} 4. Bc4 {[%clk 0:02:59]}  Be7 {[%clk 0:02:59]} 5. d3 {[%clk 0:02:59]}  d6 {[%clk 0:02:57]} 6. Nd2 {[%clk 0:02:57]}  Nf6 {[%clk 0:02:51]} 7. Nf1 {[%clk 0:02:57]}  Nd7 {[%clk 0:02:49]} 8. Ne3 {[%clk 0:02:57]}  Nb6 {[%clk 0:02:46]} 9. O-O {[%clk 0:02:54]}  O-O {[%clk 0:02:43]} 10. Ncd5 {[%clk 0:02:52]}  Nxd5 {[%clk 0:02:36]} 11. Bxd5 {[%clk 0:02:51]}  Be6 {[%clk 0:02:34]} 12. a4 {[%clk 0:02:50]}  Rb8 {[%clk 0:02:32]} 13. c3 {[%clk 0:02:45]}  Bg5 {[%clk 0:02:30]} 14. Qe2 {[%clk 0:02:28]}  Bxe3 {[%clk 0:02:28]} 15. fxe3 {[%clk 0:02:27]}  Ne7 {[%clk 0:02:11]} 16. c4 {[%clk 0:02:27]}  Bxd5 {[%clk 0:02:09]} 17. exd5 {[%clk 0:02:27]}  f5 {[%clk 0:02:08]} 18. e4 {[%clk 0:02:26]}  f4 {[%clk 0:02:07]} 19. g3 {[%clk 0:02:25]}  Ng6 {[%clk 0:02:05]} 20. gxf4 {[%clk 0:02:24]}  exf4 {[%clk 0:02:03]} 21. Bd2 {[%clk 0:02:22]}  Qh4 {[%clk 0:01:51]} 22. Bc3 {[%clk 0:02:17]}  f3 {[%clk 0:01:45]} 23. Qf2 {[%clk 0:02:05]}  Qh5 {[%clk 0:01:29]} 24. Kh1 {[%clk 0:02:02]}  Rf4 {[%clk 0:01:21]} 25. Rg1 {[%clk 0:02:00]}  Rbf8 {[%clk 0:01:20]} 26. Rg3 {[%clk 0:01:59]}  Ne5 {[%clk 0:01:04]} 27. Bxe5 {[%clk 0:01:39]}  Qxe5 {[%clk 0:01:05]} 28. Rf1 {[%clk 0:01:26]}  b6 {[%clk 0:00:50]} 29. b3 {[%clk 0:01:22]}  Rh4 {[%clk 0:00:45]} 30. Qg1 {[%clk 0:01:11]}  Rhf4 {[%clk 0:00:32]} 31. Rf2 {[%clk 0:01:11]}  Qd4 {[%clk 0:00:26]} 32. Qf1 {[%clk 0:00:54]}  Qe3 {[%clk 0:00:23]} 33. e5 {[%clk 0:00:44]}  Qxe5 {[%clk 0:00:20]} 34. Rgxf3 {[%clk 0:00:43]}  Rxf3 {[%clk 0:00:18]} 35. Rxf3 {[%clk 0:00:44]}  Rxf3 {[%clk 0:00:18]} 36. Qxf3 {[%clk 0:00:44]}  Qe1+ {[%clk 0:00:18]} 37. Kg2 {[%clk 0:00:44]}  Qd2+ {[%clk 0:00:19]} 38. Kh3 {[%clk 0:00:40]}  h6 {[%clk 0:00:14]} 39. Qf5 {[%clk 0:00:34]}  Qe3+ {[%clk 0:00:14]} 40. Kg2 {[%clk 0:00:32]}  Qe2+ {[%clk 0:00:14]} 41. Kg1 {[%clk 0:00:32]}  Qd1+ {[%clk 0:00:12]} 42. Kg2 {[%clk 0:00:32]}  Qe2+ {[%clk 0:00:12]} 43. Kg1 {[%clk 0:00:31]}  Qe3+ {[%clk 0:00:12]} 44. Kg2 {[%clk 0:00:30]}  Qg5+ {[%clk 0:00:03]} 45. Qxg5 {[%clk 0:00:31]}  hxg5 {[%clk 0:00:04]} 46. Kf3 {[%clk 0:00:31]}  Kf7 {[%clk 0:00:04]} 47. d4 {[%clk 0:00:26]}  cxd4 {[%clk 0:00:02]} 48. Ke4 {[%clk 0:00:27]}  a5 {[%clk 0:00:03]} 49. Kxd4 {[%clk 0:00:25]}  Kf6 {[%clk 0:00:03]} 50. Ke4 {[%clk 0:00:26]}  Kg6 {[%clk 0:00:04]} 51. Kf3 {[%clk 0:00:10]}  Kf5 {[%clk 0:00:04]} 52. Kg3 {[%clk 0:00:09]}  g6 {[%clk 0:00:02]} 53. h3 {[%clk 0:00:07]}  Ke5 {[%clk 0:00:02]} 54. Kf3 {[%clk 0:00:06]}  Kf6 {[%clk 0:00:03]} 55. Kg4 {[%clk 0:00:06]}  Kf7 {[%clk 0:00:02]} 56. Kxg5 {[%clk 0:00:07]}  Kg7 {[%clk 0:00:02]} 57. h4 {[%clk 0:00:06]}  Kf7 {[%clk 0:00:02]} 58. Kg4 {[%clk 0:00:04]}  Kf6 {[%clk 0:00:03]} 59. Kf4 {[%clk 0:00:04]}  Kf7 {[%clk 0:00:03]} 60. Kg5 {[%clk 0:00:04]}  Kg7 {[%clk 0:00:03]} 61. h5 {[%clk 0:00:02]}  gxh5 {[%clk 0:00:04]} 62. Kxh5 {[%clk 0:00:02]}  Kf6 {[%clk 0:00:05]} 63. Kh6 {[%clk 0:00:02]}  Ke5 {[%clk 0:00:06]} 64. Kg7 {[%clk 0:00:03]}  Kd4 {[%clk 0:00:07]} 65. Kf6 {[%clk 0:00:03]}  Kc3 {[%clk 0:00:08]} 66. Ke6 {[%clk 0:00:04]}  Kxb3 {[%clk 0:00:09]} 67. Kxd6 {[%clk 0:00:05]}  Kxa4 {[%clk 0:00:07]} 68. Kc6 {[%clk 0:00:05]}  Kb4 {[%clk 0:00:08]} 69. d6 {[%clk 0:00:05]}  a4 {[%clk 0:00:09]} 70. d7 {[%clk 0:00:06]}  a3 {[%clk 0:00:10]} 71. d8=Q {[%clk 0:00:06]}  a2 {[%clk 0:00:11]} 72. Qd2+ {[%clk 0:00:06]}  Kb3 {[%clk 0:00:04]} 73. Qc1 {[%clk 0:00:07]} 1-0


[Site "https://www.chess.com"]